fUSD/lending_fUSD_20240517
["ID","MTS","AMOUNT","RATE_DAILY","PERIOD"]
[327313927,1715980256879,-200.0,0.00023063,2]
[327313928,1715980256888,-1000.0,0.00023063,2]
[327313929,1715980256897,-500.0,0.00023063,2]
[327313930,1715980256906,-200.0,0.00023063,2]
[327313931,1715980256917,-379.04053648,0.00023076,2]
[327313932,1715980256926,-155.95810749,0.00023077,2]
[327313933,1715980256935,-314.051805,0.00023148,12]
[327313934,1715980256946,-155.95810751,0.00023156,2]
[327313935,1715980256955,-775.24820544,0.00023191,2]
[327313936,1715980256965,-219.53001879,0.00023217,2]
[327313937,1715980256974,-154.75954029,0.00023257,2]
[327313938,1715980256983,-1013.54,0.00023265,2]
[327313939,1715980256993,-219.53001897,0.00023293,2]
[327313940,1715980257003,-500.0,0.00023299,2]
[327313941,1715980257012,-2923.06,0.000233,2]
[327313942,1715980257021,-2923.06,0.000233,2]
[327313943,1715980257031,-2923.06,0.000233,2]
[327313944,1715980257040,-2923.06,0.000233,2]
[327313945,1715980257051,-2923.06,0.000233,2]
[327313946,1715980257060,-2923.06,0.000233,2]
[327313947,1715980257070,-2923.06,0.000233,2]
[327313948,1715980257080,-2923.06,0.000233,2]
[327313949,1715980257092,-2923.06,0.000233,2]
[327313950,1715980257103,-2923.06,0.000233,2]
[327313951,1715980257113,-2923.06,0.000233,2]
[327313952,1715980257123,-2923.06,0.000233,2]
[327313953,1715980257132,-2923.06,0.000233,2]
[327313954,1715980257142,-2923.06,0.000233,2]
[327313955,1715980257151,-2923.06,0.000233,2]
[327313956,1715980257161,-2923.06,0.000233,2]
[327313957,1715980257170,-2923.06,0.000233,2]
[327313958,1715980257179,-2923.06,0.000233,2]
[327313959,1715980257192,-2923.06,0.000233,2]
[327313960,1715980257203,-2923.06,0.000233,2]
[327313961,1715980257213,-150.0,0.000233,3]
[327313962,1715980257223,-150.0,0.000233,3]
[327313963,1715980257232,-510.43036732,0.00023327,2]
[327313964,1715980257243,-510.43036756,0.00023344,2]
[327313965,1715980257253,-242.0,0.0002337,2]
[327313966,1715980257263,-206.0,0.0002337,2]
[327313967,1715980257272,-3845.46030413,0.000234,2]
[327313968,1715980257283,-314.051805,0.00023448,12]
[327313969,1715980257293,-775.24820544,0.00023466,2]
[327313970,1715980257303,-150.0,0.000235,11]
[327313971,1715980257313,-500.0,0.00023553,2]
[327313972,1715980257323,-500.0,0.00023553,2]
[327313973,1715980257333,-4174.54161707,0.00023577,2]
[327313974,1715980257343,-4045.75892456,0.00023719,2]
[327313975,1715980257353,-314.051805,0.00023748,12]
[327313976,1715980257363,-500.0,0.00023753,2]
[327313977,1715980257373,-500.0,0.00023753,2]
[327313978,1715980257382,-150.0,0.000238,4]
[327313979,1715980257392,-150.0,0.000238,4]
[327313980,1715980257401,-3963.6683,0.00023813,2]
[327313981,1715980257411,-635.32,0.00023813,2]
[327313982,1715980257421,-19159.7649,0.00023814,2]
[327313983,1715980257430,-78060.7556,0.00023814,2]
[327313984,1715980257440,-188.3386856,0.00023815,2]
[327313985,1715980257449,-500.0,0.00023815,2]
[327313986,1715980257458,-500.0,0.00023815,2]
[327313987,1715980257468,-500.0,0.00023815,2]
[327313988,1715980257477,-500.0,0.00023815,2]
[327313989,1715980257487,-635.32,0.00023815,2]
[327313990,1715980257497,-635.32,0.00023815,2]
[327313991,1715980257507,-500.0,0.00023815,2]
[327313992,1715980257516,-229.37,0.00023815,2]
[327313993,1715980257526,-245000.0,0.00023816,2]
[327313994,1715980257535,-500.0,0.00023816,2]
[327313995,1715980257544,-214.0,0.00023816,2]
[327313996,1715980257554,-9678.03,0.00023816,2]
[327313997,1715980257563,-812.68,0.000239,2]
[327313998,1715980257572,-678.34,0.000239,2]
[327313999,1715980257582,-718.17,0.000239,2]
[327314000,1715980257592,-12649.23290629,0.00023912,2]
[327314001,1715980257601,-10932.59783418,0.00023913,2]
[327314002,1715980257610,-155.81514836,0.00023915,2]
[327314003,1715980257620,-1575.93726904,0.00023915,2]
[327314004,1715980257630,-2962.48987011,0.00023916,2]
[327314005,1715980257640,-192.6507428,0.00023998,2]
[327314006,1715980257649,-710.60726909,0.00023998,2]
[327314007,1715980257660,-1495.11666211,0.00024,2]
[327314008,1715980257672,-150.0,0.00024,12]
[327314009,1715980257682,-2528.56758112,0.00024005,2]
[327314010,1715980257692,-242.0,0.0002412,2]
[327314011,1715980257702,-206.0,0.0002412,2]
[327314012,1715980257713,-314.051805,0.00024148,14]
[327314013,1715980257723,-1013.54,0.0002416,2]
[327314014,1715980257734,-172.0,0.00024164,2]
[327314015,1715980257745,-150.0,0.000243,4]
[327314016,1715980257754,-150.0,0.000243,4]
[327314017,1715980257765,-986.0,0.00024396,2]
[327314018,1715980257775,-3000.0,0.000244,2]
[327314019,1715980257784,-314.051805,0.00024448,14]
[327314020,1715980257795,-155.0,0.000245,2]
[327314021,1715980257808,-150.0,0.000245,12]
[327314022,1715980257819,-800.0,0.0002463,2]
[327314023,1715980257830,-200.0,0.00024658,7]
[327314024,1715980257840,-192.62,0.00024658,2]
[327314025,1715980257851,-1000.0,0.000247,2]
[327314026,1715980257863,-283.97820169,0.00024748,2]
[327314027,1715980257878,-314.051805,0.00024748,14]
[327314028,1715980257888,-150.0,0.000248,4]
[327314029,1715980257898,-150.0,0.000248,4]
[327314030,1715980257907,-242.0,0.0002487,2]
[327314031,1715980257919,-206.0,0.0002487,2]
[327314032,1715980257928,-986.0,0.00024915,2]
[327314033,1715980257937,-31607.8651813,0.0002499,2]
[327314034,1715980257946,-774.31487155,0.00025,2]
[327314035,1715980257958,-3145.29141871,0.00025,2]
[327314036,1715980257967,-3199.64969368,0.00025,2]
[327314037,1715980257976,-468.09758885,0.00025,2]
[327314038,1715980257986,-575.04451306,0.00025,14]
[327314039,1715980257996,-321.96139267,0.00025,30]
[327314040,1715980258005,-1618.36473459,0.00025,10]
[327314041,1715980258015,-446.81531618,0.00025,2]
[327314042,1715980258025,-150.0,0.00025,13]
[327314043,1715980258035,-1013.54,0.00025055,2]
[327314044,1715980258045,-28660.35468092,0.00025076,10]
[327314045,1715980258056,-314.051805,0.00025148,16]
[327314046,1715980258066,-297.3,0.00025235,2]
[327314047,1715980258076,-2500.0,0.000253,2]
[327314048,1715980258086,-150.0,0.000253,4]
[327314049,1715980258095,-150.0,0.000253,4]
[327314050,1715980258106,-1002.75,0.00025325,15]
[327314051,1715980258117,-812.68,0.000254,2]
[327314052,1715980258126,-678.34,0.000254,2]
[327314053,1715980258135,-718.17,0.000254,2]
[327314054,1715980258146,-986.0,0.00025434,2]
[327314055,1715980258156,-314.051805,0.00025448,16]
[327314056,1715980258167,-150.0,0.000255,13]
[327314057,1715980258176,-150.0,0.000255,4]
[327314058,1715980258185,-150.0,0.000255,4]
[327314059,1715980258194,-242.0,0.0002562,2]
[327314060,1715980258204,-206.0,0.0002562,2]
[327314061,1715980258215,-314.051805,0.00025748,16]
[327314062,1715980258224,-398.124781,0.000258,2]
[327314063,1715980258235,-1500.0,0.000258,2]
[327314064,1715980258244,-150.0,0.000258,4]
[327314065,1715980258253,-150.0,0.000258,4]
[327314066,1715980258263,-212.96067623,0.00025822,2]
[327314067,1715980258271,-4174.54161707,0.00025846,2]
[327314068,1715980258282,-356.07,0.0002589,2]
[327314069,1715980258292,-151.0,0.00025916,2]
[327314070,1715980258302,-1013.54,0.0002595,2]
[327314071,1715980258312,-986.0,0.00025953,2]
[327314072,1715980258322,-2528.56758112,0.0002597,2]
[327314073,1715980258331,-196.08922412,0.00026,2]
[327314074,1715980258340,-150.0,0.00026,14]
[327314075,1715980258349,-150.0,0.00026,4]
[327314076,1715980258358,-150.0,0.00026,4]
[327314077,1715980258367,-4045.75892456,0.00026018,2]
[327314078,1715980258376,-155.0,0.00026027,30]
[327314079,1715980258385,-429.448565,0.00026027,2]
[327314080,1715980258394,-314.051805,0.00026148,18]
[327314081,1715980258404,-1500.0,0.000263,2]
[327314082,1715980258414,-150.0,0.000263,5]
[327314083,1715980258423,-150.0,0.000263,5]
[327314084,1715980258433,-523.76,0.00026309,2]
[327314085,1715980258442,-150.0,0.00026309,2]
[327314086,1715980258451,-150.0,0.00026309,2]
[327314087,1715980258460,-150.56,0.00026309,2]
[327314088,1715980258470,-150.0,0.00026309,2]
[327314089,1715980258480,-150.0,0.00026309,2]
[327314090,1715980258489,-163.35,0.00026309,2]
[327314091,1715980258499,-150.0,0.00026309,2]
[327314092,1715980258508,-420.44,0.00026309,2]
[327314093,1715980258518,-150.0,0.00026309,2]
[327314094,1715980258527,-150.0,0.00026309,2]
[327314095,1715980258537,-300.0,0.00026309,2]
[327314096,1715980258546,-420.52,0.00026309,2]
[327314097,1715980258555,-150.0,0.00026309,2]
[327314098,1715980258567,-163.38,0.00026309,2]
[327314099,1715980258576,-523.76,0.00026309,2]
[327314100,1715980258585,-150.0,0.00026309,2]
[327314101,1715980258594,-150.0,0.00026309,2]
[327314102,1715980258603,-420.52,0.00026309,2]
[327314103,1715980258613,-523.76,0.00026309,2]
[327314104,1715980258622,-150.0,0.00026309,2]
[327314105,1715980258631,-150.0,0.00026309,2]
[327314106,1715980258640,-300.0,0.00026309,2]
[327314107,1715980258649,-351.56,0.00026309,2]
[327314108,1715980258658,-163.38,0.00026309,2]
[327314109,1715980258667,-150.0,0.00026309,2]
[327314110,1715980258676,-420.52,0.00026309,2]
[327314111,1715980258686,-523.76,0.00026309,2]
[327314112,1715980258695,-150.0,0.00026309,2]
[327314113,1715980258704,-162.46,0.00026309,2]
[327314114,1715980258713,-150.0,0.00026309,2]
[327314115,1715980258723,-150.0,0.00026309,2]
[327314116,1715980258732,-351.62,0.00026309,2]
[327314117,1715980258741,-150.0,0.00026309,2]
[327314118,1715980258751,-150.0,0.00026309,2]
[327314119,1715980258761,-302.0,0.00026351,4]
[327314120,1715980258771,-242.0,0.0002637,2]
[327314121,1715980258781,-206.0,0.0002637,2]
[327314122,1715980258791,-314.051805,0.00026448,18]
[327314123,1715980258800,-986.0,0.00026472,2]
[327314124,1715980258811,-150.0,0.000265,14]
[327314125,1715980258822,-150.0,0.000265,5]
[327314126,1715980258831,-150.0,0.000265,5]
[327314127,1715980258841,-812.68,0.000266,2]
[327314128,1715980258851,-678.34,0.000266,2]
[327314129,1715980258863,-718.17,0.000266,2]
[327314130,1715980258875,-635.32,0.00026699,2]
[327314131,1715980258885,-635.32,0.00026699,2]
[327314132,1715980258895,-635.32,0.00026699,2]
[327314133,1715980258905,-635.32,0.00026699,2]
[327314134,1715980258916,-635.33537717,0.00026699,2]
[327314135,1715980258926,-2923.06,0.000267,2]
[327314136,1715980258937,-2923.06,0.000267,2]
[327314137,1715980258947,-2923.06,0.000267,2]
[327314138,1715980258959,-2923.06,0.000267,2]
[327314139,1715980258971,-2923.06,0.000267,2]
[327314140,1715980258980,-2923.06,0.000267,2]
[327314141,1715980258992,-2923.06,0.000267,2]
[327314142,1715980259003,-2923.06,0.000267,2]
[327314143,1715980259013,-2923.06,0.000267,2]
[327314144,1715980259023,-2923.06,0.000267,2]
[327314145,1715980259032,-2923.06,0.000267,2]
[327314146,1715980259044,-2923.06,0.000267,2]
[327314147,1715980259054,-2923.06,0.000267,2]
[327314148,1715980259063,-2923.06,0.000267,2]
[327314149,1715980259072,-2923.06,0.000267,2]
[327314150,1715980259081,-2923.06,0.000267,2]
[327314151,1715980259090,-2923.06,0.000267,2]
[327314152,1715980259099,-2923.06,0.000267,2]
[327314153,1715980259108,-2923.06,0.000267,2]
[327314154,1715980259117,-2923.06,0.000267,2]
[327314155,1715980259127,-314.051805,0.00026748,18]
[327314156,1715980259136,-604.0,0.00026794,7]
[327314157,1715980259146,-1500.0,0.000268,2]
[327314158,1715980259154,-150.0,0.000268,5]
[327314159,1715980259163,-150.0,0.000268,5]
[327314160,1715980259173,-1013.54,0.00026845,2]
[327314161,1715980259182,-2603.99957143,0.00026849,2]
[327314162,1715980259192,-429.448565,0.00026849,2]
[327314163,1715980259201,-877.98,0.00026921,2]
[327314164,1715980259211,-986.0,0.00026991,2]
[327314165,1715980259220,-155.0,0.00027,4]
[327314166,1715980259229,-324.78524029,0.00027,120]
[327314167,1715980259238,-6020.46392461,0.00027,2]
[327314168,1715980259247,-150.0,0.00027,15]
[327314169,1715980259257,-150.0,0.00027,5]
[327314170,1715980259266,-150.0,0.00027,5]
[327314171,1715980259275,-150.0,0.00027074,2]
[327314172,1715980259285,-150.0,0.00027086,2]
[327314173,1715980259294,-3000.0,0.000271,2]
[327314174,1715980259304,-242.0,0.0002711,2]
[327314175,1715980259313,-206.0,0.0002711,2]
[327314176,1715980259323,-216.0,0.0002711,2]
[327314177,1715980259461,-155.0,0.00027123,2]
[327314178,1715980259471,-420.52,0.00027131,2]
[327314179,1715980259480,-523.76,0.00027131,2]
[327314180,1715980259490,-351.62,0.00027131,2]
[327314181,1715980259499,-150.0,0.00027131,2]
[327314182,1715980259509,-523.76,0.00027131,2]
[327314183,1715980259518,-150.0,0.00027131,2]
[327314184,1715980259527,-351.62,0.00027131,2]
[327314185,1715980259536,-420.52,0.00027131,2]
[327314186,1715980259545,-523.76,0.00027131,2]
[327314187,1715980259555,-150.0,0.00027131,2]
[327314188,1715980259564,-935.86,0.00027131,2]
[327314189,1715980259574,-351.62,0.00027131,2]
[327314190,1715980259583,-351.62,0.00027131,2]
[327314191,1715980259593,-734.57,0.00027131,2]
[327314192,1715980259602,-1054.28,0.00027131,2]
[327314193,1715980259611,-420.52,0.00027131,2]
[327314194,1715980259620,-1045.4,0.00027131,2]
[327314195,1715980259629,-523.56,0.00027131,2]
[327314196,1715980259639,-300.12,0.00027131,2]
[327314197,1715980259649,-152.15,0.00027131,2]
[327314198,1715980259657,-690.85,0.00027131,2]
[327314199,1715980259667,-154.6,0.00027131,2]
[327314200,1715980259676,-150.0,0.00027135,2]
[327314201,1715980259684,-150.0,0.00027136,2]
[327314202,1715980259694,-150.0,0.0002714,2]
[327314203,1715980259703,-314.051805,0.00027148,20]
[327314204,1715980259713,-217.0,0.0002715,2]
[327314205,1715980259722,-150.0,0.0002715,2]
[327314206,1715980259731,-415.3,0.00027156,2]
[327314207,1715980259740,-415.3,0.00027156,2]
[327314208,1715980259749,-869.2,0.00027156,2]
[327314209,1715980259759,-869.2,0.00027156,2]
[327314210,1715980259768,-415.3,0.00027156,2]
[327314211,1715980259777,-869.2,0.00027156,2]
[327314212,1715980259787,-415.3,0.00027156,2]
[327314213,1715980259797,-415.3,0.00027156,2]
[327314214,1715980259807,-415.3,0.00027156,2]
[327314215,1715980259817,-415.3,0.00027156,2]
[327314216,1715980259827,-415.3,0.00027156,2]
[327314217,1715980259837,-415.3,0.00027156,2]
[327314218,1715980259849,-150.0,0.00027177,2]
[327314219,1715980259860,-210.78443915,0.0002718,2]
[327314220,1715980259871,-210.78443908,0.0002718,2]
[327314221,1715980259883,-210.78443908,0.0002718,2]
[327314222,1715980259892,-210.78443908,0.0002718,2]
[327314223,1715980259901,-150.0,0.00027192,2]
[327314224,1715980259912,-150.0,0.00027203,2]
[327314225,1715980259922,-150.0,0.00027207,2]
[327314226,1715980259931,-150.0,0.00027208,2]
[327314227,1715980259940,-150.0,0.00027214,2]
[327314228,1715980259953,-150.0,0.00027215,2]
[327314229,1715980259963,-150.0,0.00027219,2]
[327314230,1715980259972,-150.0,0.00027219,2]
[327314231,1715980259982,-150.0,0.00027227,2]
[327314232,1715980259992,-150.0,0.00027229,2]
[327314233,1715980260001,-150.0,0.0002723,2]
[327314234,1715980260010,-150.0,0.00027234,2]
[327314235,1715980260020,-166.99392,0.00027245,4]
[327314236,1715980260030,-150.0,0.00027254,2]
[327314237,1715980260039,-150.0,0.00027254,2]
[327314238,1715980260049,-150.0,0.00027262,2]
[327314239,1715980260058,-150.0,0.00027267,2]
[327314240,1715980260067,-150.0,0.00027274,2]
[327314241,1715980260077,-150.0,0.00027282,2]
[327314242,1715980260086,-150.0,0.00027286,2]
[327314243,1715980260096,-150.0,0.00027293,2]
[327314244,1715980260105,-150.0,0.00027298,2]
[327314245,1715980260116,-1500.0,0.000273,2]
[327314246,1715980260125,-150.0,0.000273,5]
[327314247,1715980260135,-150.0,0.000273,5]
[327314248,1715980260145,-150.0,0.00027323,2]
[327314249,1715980260154,-150.0,0.00027327,2]
[327314250,1715980260163,-150.0,0.00027339,2]
[327314251,1715980260172,-150.0,0.00027342,2]
[327314252,1715980260182,-150.0,0.00027363,2]
[327314253,1715980260191,-150.0,0.00027366,2]
[327314254,1715980260200,-150.0,0.00027369,2]
[327314255,1715980260210,-150.0,0.00027369,2]
[327314256,1715980260219,-150.0,0.00027372,2]
[327314257,1715980260229,-150.0,0.00027374,2]
[327314258,1715980260239,-150.0,0.00027375,2]
[327314259,1715980260248,-150.0,0.00027377,2]
[327314260,1715980260258,-150.0,0.0002739,2]
[327314261,1715980260267,-150.0,0.00027395,2]
[327314262,1715980260277,-500.0,0.00027397,2]
[327314263,1715980260287,-872.30466489,0.00027397,7]
[327314264,1715980260297,-444.94127906,0.00027397,2]
[327314265,1715980260306,-2392.27246774,0.00027397,2]
[327314266,1715980260316,-2402.49789051,0.00027397,2]
[327314267,1715980260326,-564.06518903,0.00027397,2]
[327314268,1715980260335,-155.0,0.00027397,2]
[327314269,1715980260345,-185.80622212,0.00027397,2]
[327314270,1715980260354,-4139.31664103,0.00027397,2]
[327314271,1715980260364,-71892.97333385,0.00027397,2]
[327314272,1715980260374,-16165.43363979,0.00027397,2]
[327314273,1715980260383,-200.0,0.00027397,2]
[327314274,1715980260393,-500.0,0.00027397,30]
[327314275,1715980260402,-500.0,0.00027397,30]
[327314276,1715980260411,-500.0,0.00027397,30]
[327314277,1715980260421,-500.0,0.00027397,30]
[327314278,1715980260430,-500.0,0.00027397,30]
[327314279,1715980260439,-500.0,0.00027397,30]
[327314280,1715980260449,-159.97629475,0.00027397,30]
[327314281,1715980260459,-200.0,0.00027397,7]
[327314282,1715980260468,-192.62,0.00027397,2]
[327314283,1715980260478,-150.0,0.00027397,2]
[327314284,1715980260487,-11790.33,0.00027397,10]
[327314285,1715980260498,-9825.28,0.00027397,10]
[327314286,1715980260507,-8187.73,0.00027397,10]
[327314287,1715980260517,-1200.0,0.000274,2]
[327314288,1715980260527,-487.0,0.000274,2]
[327314289,1715980260536,-200.0,0.000274,2]
[327314290,1715980260546,-500.0,0.000274,2]
[327314291,1715980260556,-500.0,0.000274,2]
[327314292,1715980260566,-1000.0,0.000274,2]
[327314293,1715980260575,-150.0,0.00027431,2]
[327314294,1715980260585,-150.0,0.00027442,2]
[327314295,1715980260596,-150.0,0.00027446,2]
[327314296,1715980260605,-471.051805,0.00027448,20]
[327314297,1715980260615,-150.0,0.00027455,2]
[327314298,1715980260625,-1208.0,0.00027473,30]
[327314299,1715980260634,-150.0,0.00027473,2]
[327314300,1715980260644,-150.0,0.00027477,2]
[327314301,1715980260653,-150.0,0.00027481,2]
[327314302,1715980260663,-150.0,0.00027485,2]
[327314303,1715980260673,-297.3,0.00027499,2]
[327314304,1715980260682,-150.0,0.000275,16]
[327314305,1715980260692,-150.0,0.000275,5]
[327314306,1715980260701,-150.0,0.000275,5]
[327314307,1715980260711,-150.0,0.00027501,2]
[327314308,1715980260720,-150.0,0.00027502,2]
[327314309,1715980260730,-150.0,0.00027502,2]
[327314310,1715980260739,-986.0,0.0002751,2]
[327314311,1715980260749,-150.0,0.00027523,2]
[327314312,1715980260759,-150.0,0.00027525,2]
[327314313,1715980260769,-150.0,0.00027527,2]
[327314314,1715980260778,-150.0,0.00027529,2]
[327314315,1715980260787,-150.0,0.00027534,2]
[327314316,1715980260797,-150.0,0.00027539,2]
[327314317,1715980260806,-150.0,0.00027541,2]
[327314318,1715980260815,-150.0,0.00027545,2]
[327314319,1715980260825,-150.0,0.00027548,2]
[327314320,1715980260834,-150.0,0.00027554,2]
[327314321,1715980260843,-150.0,0.00027562,2]
[327314322,1715980260853,-3000.0,0.0002758,2]
[327314323,1715980260862,-150.0,0.00027596,2]
[327314324,1715980260875,-150.0,0.00027604,2]
[327314325,1715980260884,-150.0,0.00027604,2]
[327314326,1715980260893,-150.0,0.00027618,2]
[327314327,1715980260903,-150.0,0.00027619,2]
[327314328,1715980260914,-150.0,0.00027621,2]
[327314329,1715980260924,-1563.1045821,0.00027621,2]
[327314330,1715980260934,-150.0,0.00027653,2]
[327314331,1715980260943,-150.0,0.00027658,2]
[327314332,1715980260954,-150.0,0.00027669,2]
[327314333,1715980260963,-429.448565,0.00027671,14]
[327314334,1715980260972,-150.0,0.00027673,2]
[327314335,1715980260981,-150.0,0.00027679,2]
[327314336,1715980260991,-150.0,0.00027682,2]
[327314337,1715980261001,-306.84,0.00027682,2]
[327314338,1715980261012,-150.0,0.00027688,2]
[327314339,1715980261022,-150.0,0.00027697,2]
[327314340,1715980261033,-500.0,0.000277,10]
[327314341,1715980261043,-150.0,0.00027708,2]
[327314342,1715980261053,-150.0,0.00027714,2]
[327314343,1715980261062,-150.0,0.00027724,2]
[327314344,1715980261072,-150.0,0.00027726,2]
[327314345,1715980261082,-150.0,0.0002774,2]
[327314346,1715980261092,-1013.54,0.0002774,2]
[327314347,1715980261102,-314.051805,0.00027748,20]
[327314348,1715980261113,-150.0,0.00027752,2]
[327314349,1715980261123,-150.0,0.00027762,2]
[327314350,1715980261133,-150.0,0.00027772,2]
[327314351,1715980261145,-150.0,0.00027781,2]
[327314352,1715980261155,-150.0,0.00027783,2]
[327314353,1715980261166,-150.0,0.00027787,2]
[327314354,1715980261177,-150.0,0.00027795,2]
[327314355,1715980261187,-150.0,0.00027796,2]
[327314356,1715980261196,-160.0,0.000278,2]
[327314357,1715980261206,-160.0,0.000278,2]
[327314358,1715980261217,-343.0,0.000278,2]
[327314359,1715980261226,-344.0,0.000278,2]
[327314360,1715980261236,-189.0,0.000278,11]
[327314361,1715980261247,-812.68,0.000278,2]
[327314362,1715980261257,-678.34,0.000278,2]
[327314363,1715980261267,-718.17,0.000278,2]
[327314364,1715980261278,-485.0,0.000278,11]
[327314365,1715980261287,-200.0,0.000278,2]
[327314366,1715980261297,-500.0,0.000278,10]
[327314367,1715980261309,-1500.0,0.000278,2]
[327314368,1715980261320,-150.0,0.000278,5]
[327314369,1715980261329,-150.0,0.000278,5]
[327314370,1715980261339,-150.0,0.00027802,2]
[327314371,1715980261348,-150.0,0.00027812,2]
[327314372,1715980261358,-150.0,0.00027813,2]
[327314373,1715980261369,-150.0,0.00027816,2]
[327314374,1715980261378,-150.0,0.00027825,2]
[327314375,1715980261387,-176.80825091,0.00027835,2]
[327314376,1715980261396,-150.0,0.00027835,2]
[327314377,1715980261406,-150.0,0.00027837,2]
[327314378,1715980261416,-150.0,0.00027845,2]
[327314379,1715980261426,-150.0,0.00027858,2]
[327314380,1715980261435,-217.0,0.0002786,2]
[327314381,1715980261447,-242.0,0.0002786,2]
[327314382,1715980261457,-224.0,0.0002786,2]
[327314383,1715980261467,-206.0,0.0002786,2]
[327314384,1715980261476,-216.0,0.0002786,2]
[327314385,1715980261485,-1846.0964374,0.0002786,2]
[327314386,1715980261494,-11041.3474432,0.0002786,2]
[327314387,1715980261504,-477.9994872,0.0002786,2]
[327314388,1715980261513,-1433.6759951,0.0002786,2]
[327314389,1715980261522,-1211.53612828,0.00027862,2]
[327314390,1715980261531,-155.53767023,0.00027862,2]
[327314391,1715980261541,-158.49133894,0.00027862,2]
[327314392,1715980261551,-301.17047593,0.00027862,2]
[327314393,1715980261560,-150.0,0.00027862,2]
[327314394,1715980261570,-1000.0,0.00027862,2]
[327314395,1715980261579,-1035.0,0.00027863,5]
[327314396,1715980261588,-151.0,0.00027864,7]
[327314397,1715980261598,-151.0,0.00027864,7]
[327314398,1715980261607,-151.0,0.00027864,7]
[327314399,1715980261617,-151.0,0.00027864,7]
[327314400,1715980261626,-450.0,0.0002787,2]
[327314401,1715980261636,-150.0,0.00027898,120]
[327314402,1715980261646,-252.54669864,0.000279,2]
[327314403,1715980261656,-500.0,0.000279,10]
[327314404,1715980261666,-2528.56758112,0.00027935,2]
[327314405,1715980261676,-500.0,0.00027945,4]
[327314406,1715980261686,-982.0,0.0002797,15]
[327314407,1715980261697,-483.05229021,0.00027973,30]
[327314408,1715980261706,-752.2680774,0.00027973,30]
[327314409,1715980261716,-982.0,0.0002798,15]
[327314410,1715980261726,-982.0,0.0002798,15]
[327314411,1715980261735,-982.0,0.0002799,15]
[327314412,1715980261745,-982.0,0.0002799,15]
[327314413,1715980261754,-304.7,0.00027998,2]
[327314414,1715980261764,-3000.0,0.00028,2]
[327314415,1715980261774,-300.0,0.00028,5]
[327314416,1715980261785,-250.7391481,0.00028,30]
[327314417,1715980261794,-10000.0,0.00028,30]
[327314418,1715980261804,-1386.86799443,0.00028,2]
[327314419,1715980261815,-500.0,0.00028,120]
[327314420,1715980261825,-10381.0,0.00028,14]
[327314421,1715980261835,-7382.81554169,0.00028,30]
[327314422,1715980261845,-270.824036,0.00028,16]
[327314423,1715980261856,-24663.72424461,0.00028,2]
[327314424,1715980261868,-248.124783,0.00028,2]
[327314425,1715980261881,-300.0,0.00028,2]
[327314426,1715980261892,-493.27448489,0.00028,2]